Workbook

Sheet Gesamt
A1: Projekt: | E1: H6
A2: 1090 Wien, Alserbachstraße 25
A3: EZ 26, KG Alsergrund (01002)
A5: Stiege | B5: Geschoss | C5: Top | D5: Zimmer | E5: Wohnungstypen | J5: Wohnnutz-fläche m2 | K5: Loggia | L5: Balkon | M5: Terrasse | N5: Garten | O5: Einlager.r. UG | P5: Gesamte Wohnnutz-fläche m2 | Q5: Anteile pro NW | R5: Baukosten- beitrag NW | S5: HMZ Bezug 10/25 umg. a. NW | T5: Erhaltungs- beitrag NFl. | U5: Betriebs- kosten NFl. | V5: Lift NFl. | W5: Summe Miete Netto | X5: Verwohnungs-betrag netto | Y5: Ust | Z5: Ust Verwohnung | AA5: UST gesamt | AB5: Miete gesamt | AC5: Kaution | AD5: Kaution gerundet | AE5: Kaution und FB-Betrag | AF5: Brutto Miete
E6: A | F6: B | G6: C | H6: D | I6: E
R7: =ROUND(750*P22/Q22,2) -> 702.20 | S7: =15.5*P22/Q22 -> 14.51 | T7: 0.00 | U7: 1.80 | V7: 0.40 | X7: 1,200.00
A8: 1 | B8: EG | C8: 001/001 | D8: 3 | J8: 85.96 | K8: 0.00 | L8: 0.00 | M8: 48.66 | N8: 171.49 | O8: 4.61 | P8: =J8+K8 -> 85.96 | Q8: 121 | R8: =R$7*Q8 -> 84,966.20 | S8: =S$7*Q8 -> 1,755.97 | T8: =T$7*P8 -> 0.00 | U8: =U$7*P8 -> 154.73 | V8: =V$7*P8 -> 34.38 | W8: =SUM(S8:V8) -> 1,945.09 | X8: =R8/$X$7 -> 70.81 | Y8: =W8*10% -> 194.51 | Z8: =R8/$X$7*10% -> 7.08 | AA8: =Y8+Z8 -> 201.59 | AB8: =W8+AA8 -> 2,146.67 | AF8: =AB8/P8 -> 24.97
A9: 1 | B9: 1 | C9: 001/002 | D9: 3 | J9: 88.46 | K9: 0.00 | L9: 15.73 | M9: 0.00 | N9: 0.00 | O9: 3.94 | P9: =J9+K9 -> 88.46 | Q9: 93 | R9: =R$7*Q9 -> 65,304.60 | S9: =S$7*Q9 -> 1,349.63 | T9: 0.00 | U9: 159.23 | V9: 35.38 | W9: =SUM(S9:V9) -> 1,544.24 | X9: =R9/$X$7 -> 54.42 | Y9: =W9*10% -> 154.42 | Z9: =R9/$X$7*10% -> 5.44 | AA9: =Y9+Z9 -> 159.87 | AB9: =W9+AA9 -> 1,704.11 | AF9: =AB9/P9 -> 19.26
A10: 1 | B10: 1 | C10: 001/003 | D10: 2 | J10: 44.21 | K10: 5.76 | L10: 0.00 | M10: 0.00 | N10: 0.00 | O10: 3.97 | P10: =J10+K10 -> 49.97 | Q10: 44 | R10: 30,896.80 | S10: =S$7*Q10 -> 638.54 | T10: 0.00 | U10: 89.95 | V10: 19.99 | W10: 748.47 | X10: 25.75 | Y10: 74.85 | Z10: 2.57 | AA10: 77.42 | AB10: 825.89 | AF10: 16.53
A11: 1 | B11: 1 | C11: 001/004 | D11: 2 | J11: 34.23 | K11: 5.79 | L11: 0.00 | M11: 0.00 | N11: 0.00 | O11: 4.37 | P11: 40.02 | Q11: 34 | R11: 23,874.80 | S11: 493.41 | T11: 0.00 | U11: 72.04 | V11: 16.01 | W11: =SUM(S11:V11) -> 581.46 | X11: 19.90 | Y11: 58.15 | Z11: 1.99 | AA11: 60.14 | AB11: 641.59 | AF11: 16.03
A12: 1 | B12: 2 | C12: 001/005 | D12: 3 | J12: 88.39 | K12: 0.00 | L12: 15.55 | M12: 0.00 | N12: 0.00 | O12: 4.21 | P12: 88.39 | Q12: 93 | R12: 65,304.60 | S12: 1,349.63 | T12: 0.00 | U12: 159.10 | V12: 35.36 | W12: =SUM(S12:V12) -> 1,544.09 | X12: 54.42 | Y12: 154.41 | Z12: 5.44 | AA12: 159.85 | AB12: 1,703.94 | AF12: 19.28
A13: 1 | B13: 2 | C13: 001/006 | D13: 2 | J13: 44.29 | K13: 5.73 | L13: 0.00 | M13: 0.00 | N13: 0.00 | O13: 3.91 | P13: 50.02 | Q13: 44 | R13: 30,896.80 | S13: 638.54 | T13: 0.00 | U13: 90.04 | V13: 20.01 | W13: 748.58 | X13: 25.75 | Y13: 74.86 | Z13: 2.57 | AA13: 77.43 | AB13: 826.01 | AF13: 16.51
A14: 1 | B14: 2 | C14: 001/007 | D14: 2 | J14: 34.26 | K14: 5.59 | L14: 0.00 | M14: 0.00 | N14: 0.00 | O14: 3.91 | P14: 39.85 | Q14: 33 | R14: 23,172.60 | S14: 478.90 | T14: 0.00 | U14: 71.73 | V14: 15.94 | W14: 566.57 | X14: 19.31 | Y14: 56.66 | Z14: 1.93 | AA14: 58.59 | AB14: 625.16 | AF14: 15.69
A15: 1 | B15: 3 | C15: 001/008 | D15: 3 | J15: 88.47 | K15: 0.00 | L15: 15.34 | M15: 0.00 | N15: 0.00 | O15: 4.20 | P15: 88.47 | Q15: 93 | R15: 65,304.60 | S15: 1,349.63 | T15: 0.00 | U15: 159.25 | V15: 35.39 | W15: 1,544.27 | X15: 54.42 | Y15: 154.43 | Z15: 5.44 | AA15: 159.87 | AB15: 1,704.14 | AF15: 19.26
A16: 1 | B16: 3 | C16: 001/009 | D16: 3 | J16: 84.97 | K16: 11.58 | L16: 0.00 | M16: 0.00 | N16: 0.00 | O16: 4.68 | P16: 96.55 | Q16: 92 | R16: 64,602.40 | S16: 1,335.12 | T16: 0.00 | U16: 173.79 | V16: 38.62 | W16: 1,547.53 | X16: 53.84 | Y16: 154.75 | Z16: 5.38 | AA16: 160.14 | AB16: 1,707.67 | AF16: 17.69
A17: 1 | B17: 4 | C17: 001/010 | D17: 3 | J17: 88.40 | K17: 0.00 | L17: 15.54 | M17: 0.00 | N17: 0.00 | O17: 3.99 | P17: 88.40 | Q17: 93 | R17: 65,304.60 | S17: =S$7*Q17 -> 1,349.63 | T17: 0.00 | U17: 159.12 | V17: 35.36 | W17: =SUM(S17:V17) -> 1,544.11 | X17: 54.42 | Y17: 154.41 | Z17: 5.44 | AA17: 159.85 | AB17: =W17+AA17 -> 1,703.97 | AF17: 19.28
A18: 1 | B18: 4 | C18: 001/011 | D18: 4 | J18: 84.21 | K18: 11.57 | L18: 0.00 | M18: 0.00 | N18: 0.00 | O18: 3.83 | P18: =J18+K18 -> 95.78 | Q18: 93 | R18: 65,304.60 | S18: 1,349.63 | T18: 0.00 | U18: 172.40 | V18: 38.31 | W18: 1,560.35 | X18: 54.42 | Y18: 156.03 | Z18: 5.44 | AA18: 161.48 | AB18: 1,721.83 | AF18: 17.98
A19: 1 | B19: 5 | C19: 001/012 | D19: 3 | J19: 79.49 | K19: 0.00 | L19: 14.99 | M19: 10.23 | N19: 0.00 | O19: 4.18 | P19: 79.49 | Q19: 87 | R19: 61,091.40 | S19: 1,262.56 | T19: 0.00 | U19: 143.08 | V19: 31.80 | W19: 1,437.44 | X19: 50.91 | Y19: 143.74 | Z19: 5.09 | AA19: 148.83 | AB19: 1,586.27 | AF19: 19.96
A20: 1 | B20: 5 | C20: 001/013 | D20: 3 | J20: 85.01 | K20: 11.57 | L20: 0.00 | N20: 0.00 | O20: 4.52 | P20: 96.58 | Q20: 96 | R20: 67,411.20 | S20: 1,393.17 | T20: 0.00 | U20: 173.84 | V20: 38.63 | W20: 1,605.65 | X20: 56.18 | Y20: 160.56 | Z20: 5.62 | AA20: 166.18 | AB20: 1,771.83 | AF20: 18.35
A21: 1 | B21: DG | C21: 001/014 | D21: 3 | J21: 144.01 | K21: 0.00 | L21: 0.00 | M21: 52.03 | N21: 0.00 | O21: 5.56 | P21: 144.01 | Q21: 193 | R21: 135,524.60 | S21: 2,800.85 | T21: 0.00 | U21: 259.22 | V21: 57.60 | W21: 3,117.67 | X21: 112.94 | Y21: 311.77 | Z21: 11.29 | AA21: 323.06 | AB21: 3,440.73 | AF21: 23.89
J22: =SUM(J8:J21) -> 1,074.36 | P22: =SUM(P8:P21) -> 1,131.95 | Q22: =SUM(Q8:Q21) -> 1,209 | R22: =SUM(R8:R21) -> 848,959.80 | S22: =SUM(S8:S21) -> 17,545.23 | T22: =T$7*P22 -> 0.00 | U22: =SUM(U8:U21) -> 2,037.51 | V22: =SUM(V8:V21) -> 452.78 | W22: =SUM(W8:W21) -> 20,035.52 | Y22: =SUM(Y8:Y21) -> 2,003.55 | Z22: =SUM(Z8:Z21) -> 70.75 | AA22: =SUM(AA8:AA21) -> 2,074.30 | AB22: =SUM(AB8:AB21) -> 22,109.81 | AF22: =AVERAGE(AF8:AF21) -> 18.91 | AG22: =+SUMPRODUCT(AF8:AF21*P8:P21)/P22 -> 19.5324998 | AH22: =+AG22/1.1 -> 17.756818
U23: =P22*U7 -> 2,037.51 | V23: =P22*V7 -> 452.78 | W23: =S22+U23+V23 -> 20,035.52
